[Event "Titled Tuesday Blitz July 25 Early 2023"]
[White "Iturrizaga Bonelli, Eduardo"]
[Black "Eynullayev, Altay"]
[WhiteFideId "3901211"]
[BlackFideId "13413562"]
[WhiteElo "2886"]
[BlackElo "2563"]
[Result "1-0"]
[Round "2"]
[TimeControl "180+2"]
[Date "2023.07.25"]
[WhiteClock "0:00:15"]
[BlackClock "0:00:21"]
[Board "37"]

1. c4 {[%clk 0:03:00]}  Nf6 {[%clk 0:02:59]} 2. g3 {[%clk 0:03:01]}  e6 {[%clk 0:02:58]} 3. Bg2 {[%clk 0:03:00]}  d5 {[%clk 0:02:59]} 4. d4 {[%clk 0:02:59]}  Bb4+ {[%clk 0:02:59]} 5. Bd2 {[%clk 0:02:59]}  Be7 {[%clk 0:02:59]} 6. Nf3 {[%clk 0:02:59]}  O-O {[%clk 0:02:59]} 7. O-O {[%clk 0:02:59]}  Nbd7 {[%clk 0:03:00]} 8. Qc2 {[%clk 0:02:59]}  c6 {[%clk 0:03:00]} 9. Bf4 {[%clk 0:02:57]}  b6 {[%clk 0:02:59]} 10. Nbd2 {[%clk 0:02:55]}  Nh5 {[%clk 0:02:57]} 11. Be3 {[%clk 0:02:55]}  f5 {[%clk 0:02:56]} 12. Ne5 {[%clk 0:02:52]}  Nxe5 {[%clk 0:02:50]} 13. dxe5 {[%clk 0:02:52]}  d4 {[%clk 0:02:33]} 14. Bf4 {[%clk 0:02:47]}  g5 {[%clk 0:02:31]} 15. Bxg5 {[%clk 0:02:45]}  Bxg5 {[%clk 0:02:30]} 16. f4 {[%clk 0:02:46]}  Be7 {[%clk 0:02:27]} 17. Bxc6 {[%clk 0:02:46]}  Rb8 {[%clk 0:02:27]} 18. Bf3 {[%clk 0:02:46]}  Ng7 {[%clk 0:02:20]} 19. Nb3 {[%clk 0:02:45]}  Bb7 {[%clk 0:02:03]} 20. Rad1 {[%clk 0:02:34]}  Bxf3 {[%clk 0:02:01]} 21. Rxf3 {[%clk 0:02:35]}  Rb7 {[%clk 0:01:59]} 22. Rfd3 {[%clk 0:02:33]}  Rd7 {[%clk 0:01:57]} 23. e3 {[%clk 0:02:15]}  a5 {[%clk 0:01:44]} 24. exd4 {[%clk 0:02:12]}  a4 {[%clk 0:01:44]} 25. Nc1 {[%clk 0:02:12]}  Qc7 {[%clk 0:01:32]} 26. Qxa4 {[%clk 0:02:05]}  Rfd8 {[%clk 0:01:25]} 27. Ne2 {[%clk 0:02:02]}  Qb7 {[%clk 0:01:14]} 28. d5 {[%clk 0:01:51]}  Bc5+ {[%clk 0:01:11]} 29. Kf1 {[%clk 0:01:45]}  Ne8 {[%clk 0:00:47]} 30. b4 {[%clk 0:01:21]}  Bf8 {[%clk 0:00:46]} 31. Nc3 {[%clk 0:01:07]}  Nc7 {[%clk 0:00:41]} 32. Qb3 {[%clk 0:01:02]}  b5 {[%clk 0:00:35]} 33. c5 {[%clk 0:00:51]}  Nxd5 {[%clk 0:00:30]} 34. Nxd5 {[%clk 0:00:51]}  Rxd5 {[%clk 0:00:29]} 35. Rxd5 {[%clk 0:00:51]}  Rxd5 {[%clk 0:00:28]} 36. Rxd5 {[%clk 0:00:51]}  exd5 {[%clk 0:00:28]} 37. Qd3 {[%clk 0:00:38]}  Qd7 {[%clk 0:00:28]} 38. Kf2 {[%clk 0:00:30]}  Kf7 {[%clk 0:00:27]} 39. Qe2 {[%clk 0:00:29]}  d4 {[%clk 0:00:23]} 40. Qf3 {[%clk 0:00:24]}  Ke6 {[%clk 0:00:20]} 41. Qb3+ {[%clk 0:00:23]}  Qd5 {[%clk 0:00:20]} 42. Qxd5+ {[%clk 0:00:11]}  Kxd5 {[%clk 0:00:20]} 43. Ke2 {[%clk 0:00:12]}  Kc4 {[%clk 0:00:20]} 44. a3 {[%clk 0:00:12]}  Kb3 {[%clk 0:00:19]} 45. Kd3 {[%clk 0:00:10]}  Be7 {[%clk 0:00:16]} 46. c6 {[%clk 0:00:10]}  Bd8 {[%clk 0:00:16]} 47. e6 {[%clk 0:00:11]}  Kxa3 {[%clk 0:00:16]} 48. c7 {[%clk 0:00:10]}  Bxc7 {[%clk 0:00:17]} 49. e7 {[%clk 0:00:11]}  Kxb4 {[%clk 0:00:17]} 50. e8=Q {[%clk 0:00:12]}  Bb6 {[%clk 0:00:18]} 51. Qe7+ {[%clk 0:00:12]}  Bc5 {[%clk 0:00:18]} 52. Qe6 {[%clk 0:00:12]}  Ka4 {[%clk 0:00:18]} 53. Qxf5 {[%clk 0:00:13]}  Bb4 {[%clk 0:00:17]} 54. Qxh7 {[%clk 0:00:13]}  Kb3 {[%clk 0:00:18]} 55. Kxd4 {[%clk 0:00:13]}  Bc3+ {[%clk 0:00:19]} 56. Kd3 {[%clk 0:00:13]}  b4 {[%clk 0:00:20]} 57. Qf7+ {[%clk 0:00:14]}  Kb2 {[%clk 0:00:21]} 58. Kc4 {[%clk 0:00:14]}  b3 {[%clk 0:00:22]} 59. Qb7 {[%clk 0:00:14]}  Ka1 {[%clk 0:00:21]} 60. Qxb3 {[%clk 0:00:15]}  Bb2 {[%clk 0:00:21]} 61. Kd3 {[%clk 0:00:15]} 1-0


[Site "https://www.chess.com"]

[Event "Titled Tuesday Blitz July 25 Early 2023"]
[White "Ilkhomi, Jaloliddin"]
[Black "Kovalenko, Igor"]
[WhiteFideId "14700948"]
[BlackFideId "14117908"]
[WhiteElo "2563"]
[BlackElo "2882"]
[Result "0-1"]
[Round "2"]
[TimeControl "180+2"]
[Date "2023.07.25"]
[WhiteClock "0:01:19"]
[BlackClock "0:01:38"]
[Board "38"]

1. Nf3 {[%clk 0:02:59]}  d5 {[%clk 0:02:58]} 2. c4 {[%clk 0:02:59]}  e6 {[%clk 0:02:57]} 3. g3 {[%clk 0:02:59]}  Nd7 {[%clk 0:02:56]} 4. b3 {[%clk 0:02:55]}  Ngf6 {[%clk 0:02:47]} 5. Bg2 {[%clk 0:02:55]}  b6 {[%clk 0:02:47]} 6. O-O {[%clk 0:02:56]}  Bb7 {[%clk 0:02:47]} 7. d4 {[%clk 0:02:56]}  c5 {[%clk 0:02:39]} 8. Bb2 {[%clk 0:02:46]}  dxc4 {[%clk 0:02:37]} 9. bxc4 {[%clk 0:02:45]}  cxd4 {[%clk 0:02:37]} 10. Nxd4 {[%clk 0:02:40]}  Bxg2 {[%clk 0:02:37]} 11. Kxg2 {[%clk 0:02:41]}  Qc8 {[%clk 0:02:35]} 12. Nd2 {[%clk 0:02:38]}  Be7 {[%clk 0:02:33]} 13. Rc1 {[%clk 0:02:37]}  O-O {[%clk 0:02:33]} 14. N2f3 {[%clk 0:02:28]}  Rd8 {[%clk 0:02:32]} 15. Qc2 {[%clk 0:02:27]}  Qb7 {[%clk 0:02:32]} 16. Rfd1 {[%clk 0:02:27]}  Rac8 {[%clk 0:02:01]} 17. Qb1 {[%clk 0:02:20]}  Ne4 {[%clk 0:01:53]} 18. h4 {[%clk 0:02:13]}  Ndf6 {[%clk 0:01:50]} 19. Qd3 {[%clk 0:01:57]}  Ng4 {[%clk 0:01:47]} 20. Qc2 {[%clk 0:01:25]}  Nexf2 {[%clk 0:01:41]} 21. Qc3 {[%clk 0:01:24]}  Nxd1 {[%clk 0:01:40]} 22. Rxd1 {[%clk 0:01:25]}  Bf6 {[%clk 0:01:38]} 23. Qc2 {[%clk 0:01:19]}  Ne3+ {[%clk 0:01:38]} 0-1


[Site "https://www.chess.com"]

[Event "Titled Tuesday Blitz July 25 Early 2023"]
[White "Becerra Rivero, Julio"]
[Black "Krutko, Anatoly"]
[WhiteFideId "3501728"]
[BlackFideId "4185862"]
[WhiteElo "2877"]
[BlackElo "2561"]
[Result "1/2-1/2"]
[Round "2"]
[TimeControl "180+2"]
[Date "2023.07.25"]
[WhiteClock "0:00:04"]
[BlackClock "0:00:14"]
[Board "39"]

1. e4 {[%clk 0:03:00]}  e5 {[%clk 0:02:56]} 2. Nf3 {[%clk 0:03:00]}  Nc6 {[%clk 0:02:57]} 3. Bb5 {[%clk 0:03:00]}  a6 {[%clk 0:02:57]} 4. Ba4 {[%clk 0:02:59]}  Nf6 {[%clk 0:02:57]} 5. O-O {[%clk 0:02:59]}  b5 {[%clk 0:02:58]} 6. Bb3 {[%clk 0:02:59]}  Bc5 {[%clk 0:02:59]} 7. a4 {[%clk 0:02:59]}  Bb7 {[%clk 0:02:58]} 8. d3 {[%clk 0:02:58]}  O-O {[%clk 0:02:57]} 9. Nc3 {[%clk 0:02:56]}  b4 {[%clk 0:02:38]} 10. Nd5 {[%clk 0:02:56]}  Nxd5 {[%clk 0:02:35]} 11. Bxd5 {[%clk 0:02:55]}  d6 {[%clk 0:02:33]} 12. Be3 {[%clk 0:02:46]}  Ba7 {[%clk 0:02:27]} 13. Qd2 {[%clk 0:02:31]}  a5 {[%clk 0:02:25]} 14. d4 {[%clk 0:02:30]}  exd4 {[%clk 0:02:22]} 15. Nxd4 {[%clk 0:02:30]}  Bxd4 {[%clk 0:02:02]} 16. Bxd4 {[%clk 0:02:29]}  Nxd4 {[%clk 0:02:00]} 17. Bxb7 {[%clk 0:02:23]}  Rb8 {[%clk 0:02:01]} 18. Bd5 {[%clk 0:02:21]}  c5 {[%clk 0:02:00]} 19. Rfd1 {[%clk 0:02:06]}  Qf6 {[%clk 0:01:58]} 20. c3 {[%clk 0:01:52]}  bxc3 {[%clk 0:01:58]} 21. bxc3 {[%clk 0:01:53]}  Nb3 {[%clk 0:01:56]} 22. Bxb3 {[%clk 0:01:52]}  Rxb3 {[%clk 0:01:57]} 23. Qxd6 {[%clk 0:01:31]}  Qxd6 {[%clk 0:01:28]} 24. Rxd6 {[%clk 0:01:32]}  Rxc3 {[%clk 0:01:29]} 25. Ra6 {[%clk 0:01:31]}  Rb8 {[%clk 0:01:27]} 26. Rxa5 {[%clk 0:01:29]}  h6 {[%clk 0:01:24]} 27. Ra7 {[%clk 0:01:20]}  Rc2 {[%clk 0:01:23]} 28. h4 {[%clk 0:01:09]}  Rbb2 {[%clk 0:01:21]} 29. Rf1 {[%clk 0:01:08]}  c4 {[%clk 0:01:20]} 30. a5 {[%clk 0:01:06]}  c3 {[%clk 0:01:19]} 31. a6 {[%clk 0:00:51]}  Ra2 {[%clk 0:01:10]} 32. h5 {[%clk 0:00:42]}  Rcb2 {[%clk 0:01:05]} 33. Rc7 {[%clk 0:00:41]}  c2 {[%clk 0:00:31]} 34. a7 {[%clk 0:00:41]}  Rb1 {[%clk 0:00:28]} 35. Rxc2 {[%clk 0:00:40]}  Rxf1+ {[%clk 0:00:27]} 36. Kxf1 {[%clk 0:00:41]}  Rxa7 {[%clk 0:00:27]} 37. g4 {[%clk 0:00:40]}  Ra4 {[%clk 0:00:24]} 38. f3 {[%clk 0:00:39]}  Ra3 {[%clk 0:00:21]} 39. Kf2 {[%clk 0:00:39]}  Rb3 {[%clk 0:00:22]} 40. Rc8+ {[%clk 0:00:38]}  Kh7 {[%clk 0:00:22]} 41. Rc7 {[%clk 0:00:39]}  f6 {[%clk 0:00:21]} 42. Kg3 {[%clk 0:00:37]}  Ra3 {[%clk 0:00:21]} 43. Kf4 {[%clk 0:00:37]}  Rb3 {[%clk 0:00:21]} 44. Re7 {[%clk 0:00:36]}  Ra3 {[%clk 0:00:21]} 45. e5 {[%clk 0:00:35]}  fxe5+ {[%clk 0:00:21]} 46. Rxe5 {[%clk 0:00:34]}  Ra4+ {[%clk 0:00:22]} 47. Kf5 {[%clk 0:00:34]}  Ra6 {[%clk 0:00:22]} 48. f4 {[%clk 0:00:32]}  Ra4 {[%clk 0:00:22]} 49. Rd5 {[%clk 0:00:28]}  Rb4 {[%clk 0:00:22]} 50. Ke5 {[%clk 0:00:25]}  Rb1 {[%clk 0:00:22]} 51. g5 {[%clk 0:00:23]}  hxg5 {[%clk 0:00:21]} 52. fxg5 {[%clk 0:00:24]}  Rg1 {[%clk 0:00:20]} 53. Kf5 {[%clk 0:00:22]}  Rf1+ {[%clk 0:00:21]} 54. Ke6 {[%clk 0:00:22]}  Re1+ {[%clk 0:00:18]} 55. Re5 {[%clk 0:00:19]}  Ra1 {[%clk 0:00:18]} 56. Kf7 {[%clk 0:00:12]}  Rf1+ {[%clk 0:00:18]} 57. Ke7 {[%clk 0:00:11]}  Ra1 {[%clk 0:00:19]} 58. Ke6 {[%clk 0:00:08]}  Rh1 {[%clk 0:00:16]} 59. g6+ {[%clk 0:00:07]}  Kh6 {[%clk 0:00:16]} 60. Kf7 {[%clk 0:00:08]}  Rf1+ {[%clk 0:00:13]} 61. Kg8 {[%clk 0:00:07]}  Ra1 {[%clk 0:00:14]} 62. Re7 {[%clk 0:00:03]}  Ra8+ {[%clk 0:00:13]} 63. Kf7 {[%clk 0:00:03]}  Ra1 {[%clk 0:00:14]} 64. Kg8 {[%clk 0:00:03]}  Ra8+ {[%clk 0:00:14]} 65. Kf7 {[%clk 0:00:04]}  Ra1 {[%clk 0:00:14]} 66. Kg8 {[%clk 0:00:04]} 1/2-1/2


[Site "https://www.chess.com"]

[Event "Titled Tuesday Blitz July 25 Early 2023"]
[White "Garv Gaur"]
[Black "Kushagra Mohan"]
[WhiteFideId "45030839"]
[BlackFideId "25033638"]
[WhiteElo "2560"]
[BlackElo "2875"]
[Result "1/2-1/2"]
[Round "2"]
[TimeControl "180+2"]
[Date "2023.07.25"]
[WhiteClock "0:00:16"]
[BlackClock "0:00:12"]
[Board "40"]

1. Nf3 {[%clk 0:03:00]}  Nf6 {[%clk 0:02:59]} 2. g3 {[%clk 0:03:00]}  g6 {[%clk 0:03:00]} 3. Bg2 {[%clk 0:03:00]}  Bg7 {[%clk 0:03:01]} 4. O-O {[%clk 0:03:00]}  c5 {[%clk 0:03:01]} 5. c4 {[%clk 0:03:00]}  O-O {[%clk 0:03:01]} 6. Nc3 {[%clk 0:03:01]}  Nc6 {[%clk 0:03:00]} 7. d3 {[%clk 0:03:01]}  d6 {[%clk 0:03:00]} 8. Qd2 {[%clk 0:03:01]}  Rb8 {[%clk 0:02:59]} 9. b3 {[%clk 0:03:01]}  a6 {[%clk 0:02:59]} 10. Ne1 {[%clk 0:02:54]}  Bd7 {[%clk 0:02:58]} 11. a4 {[%clk 0:02:51]}  Qc8 {[%clk 0:02:58]} 12. Bb2 {[%clk 0:02:50]}  Bh3 {[%clk 0:02:57]} 13. e3 {[%clk 0:02:41]}  h5 {[%clk 0:02:54]} 14. d4 {[%clk 0:02:30]}  Bxg2 {[%clk 0:02:51]} 15. Nxg2 {[%clk 0:02:30]}  e5 {[%clk 0:02:48]} 16. dxc5 {[%clk 0:02:25]}  dxc5 {[%clk 0:02:40]} 17. Nd5 {[%clk 0:02:26]}  Rd8 {[%clk 0:02:38]} 18. Rad1 {[%clk 0:02:22]}  Qh3 {[%clk 0:02:34]} 19. f3 {[%clk 0:02:19]}  b5 {[%clk 0:02:14]} 20. axb5 {[%clk 0:02:03]}  axb5 {[%clk 0:02:15]} 21. Bc3 {[%clk 0:02:01]}  Ra8 {[%clk 0:01:58]} 22. Ra1 {[%clk 0:01:58]}  b4 {[%clk 0:01:50]} 23. Bb2 {[%clk 0:01:58]}  Rxa1 {[%clk 0:01:44]} 24. Rxa1 {[%clk 0:01:54]}  Qd7 {[%clk 0:01:39]} 25. e4 {[%clk 0:01:47]}  Nd4 {[%clk 0:01:38]} 26. Bxd4 {[%clk 0:01:47]}  exd4 {[%clk 0:01:38]} 27. Ne1 {[%clk 0:01:45]}  Nxd5 {[%clk 0:01:38]} 28. exd5 {[%clk 0:01:41]}  Bf8 {[%clk 0:01:38]} 29. Nd3 {[%clk 0:01:40]}  Bd6 {[%clk 0:01:39]} 30. Qg5 {[%clk 0:01:30]}  Re8 {[%clk 0:01:38]} 31. f4 {[%clk 0:01:26]}  Re3 {[%clk 0:01:22]} 32. Ne5 {[%clk 0:01:22]}  Bxe5 {[%clk 0:00:36]} 33. fxe5 {[%clk 0:01:23]}  Qh3 {[%clk 0:00:36]} 34. e6 {[%clk 0:00:40]}  Qg4 {[%clk 0:00:19]} 35. exf7+ {[%clk 0:00:38]}  Kxf7 {[%clk 0:00:13]} 36. Ra7+ {[%clk 0:00:37]}  Ke8 {[%clk 0:00:13]} 37. Ra8+ {[%clk 0:00:35]}  Kf7 {[%clk 0:00:13]} 38. Ra7+ {[%clk 0:00:20]}  Ke8 {[%clk 0:00:13]} 39. Ra8+ {[%clk 0:00:15]}  Kf7 {[%clk 0:00:12]} 40. Ra7+ {[%clk 0:00:16]} 1/2-1/2


[Site "https://www.chess.com"]

[Event "Titled Tuesday Blitz July 25 Early 2023"]
[White "Harsha Bharathakoti"]
[Black "Yurovskykh, Oleksandr"]
[WhiteFideId "5078776"]
[BlackFideId "14134020"]
[WhiteElo "2873"]
[BlackElo "2559"]
[Result "1-0"]
[Round "2"]
[TimeControl "180+2"]
[Date "2023.07.25"]
[WhiteClock "0:00:57"]
[BlackClock "0:00:16"]
[Board "41"]

1. Nf3 {[%clk 0:02:59]}  Nf6 {[%clk 0:02:57]} 2. g3 {[%clk 0:02:58]}  b5 {[%clk 0:02:57]} 3. Bg2 {[%clk 0:02:57]}  Bb7 {[%clk 0:02:56]} 4. O-O {[%clk 0:02:57]}  e6 {[%clk 0:02:53]} 5. b3 {[%clk 0:02:56]}  Be7 {[%clk 0:02:53]} 6. c4 {[%clk 0:02:56]}  bxc4 {[%clk 0:02:50]} 7. bxc4 {[%clk 0:02:56]}  c5 {[%clk 0:02:49]} 8. Nc3 {[%clk 0:02:56]}  O-O {[%clk 0:02:48]} 9. Rb1 {[%clk 0:02:56]}  Qc8 {[%clk 0:02:41]} 10. d3 {[%clk 0:02:49]}  d6 {[%clk 0:02:39]} 11. Bf4 {[%clk 0:02:42]}  Nbd7 {[%clk 0:02:18]} 12. Qa4 {[%clk 0:02:26]}  Bc6 {[%clk 0:02:09]} 13. Qa5 {[%clk 0:02:26]}  e5 {[%clk 0:01:57]} 14. Bg5 {[%clk 0:02:21]}  Bd8 {[%clk 0:01:51]} 15. Qa3 {[%clk 0:02:20]}  h6 {[%clk 0:01:35]} 16. Bxf6 {[%clk 0:02:19]}  Nxf6 {[%clk 0:01:35]} 17. Nd2 {[%clk 0:02:16]}  Bxg2 {[%clk 0:01:27]} 18. Kxg2 {[%clk 0:02:17]}  Qc6+ {[%clk 0:01:27]} 19. Nde4 {[%clk 0:01:57]}  a6 {[%clk 0:01:07]} 20. Qa4 {[%clk 0:01:40]}  Qxa4 {[%clk 0:01:00]} 21. Nxa4 {[%clk 0:01:41]}  Nxe4 {[%clk 0:00:50]} 22. dxe4 {[%clk 0:01:42]}  Bc7 {[%clk 0:00:51]} 23. Rb7 {[%clk 0:01:39]}  Rfc8 {[%clk 0:00:51]} 24. Nc3 {[%clk 0:01:30]}  Rab8 {[%clk 0:00:49]} 25. Rfb1 {[%clk 0:01:30]}  Kf8 {[%clk 0:00:38]} 26. Nd5 {[%clk 0:01:30]}  Rxb7 {[%clk 0:00:38]} 27. Rxb7 {[%clk 0:01:30]}  Bd8 {[%clk 0:00:37]} 28. Ra7 {[%clk 0:01:20]}  Rc6 {[%clk 0:00:35]} 29. Kf3 {[%clk 0:01:11]}  Ke8 {[%clk 0:00:35]} 30. Ke3 {[%clk 0:01:10]}  a5 {[%clk 0:00:23]} 31. Kd3 {[%clk 0:01:06]}  Rc8 {[%clk 0:00:22]} 32. Rb7 {[%clk 0:01:07]}  h5 {[%clk 0:00:19]} 33. h3 {[%clk 0:01:06]}  g6 {[%clk 0:00:19]} 34. Kc2 {[%clk 0:01:06]}  Rc6 {[%clk 0:00:20]} 35. Kb3 {[%clk 0:01:06]}  a4+ {[%clk 0:00:19]} 36. Kxa4 {[%clk 0:01:06]}  Ra6+ {[%clk 0:00:20]} 37. Kb3 {[%clk 0:01:07]}  Ra8 {[%clk 0:00:18]} 38. a3 {[%clk 0:01:01]}  Ra6 {[%clk 0:00:18]} 39. Nc3 {[%clk 0:00:56]}  Ba5 {[%clk 0:00:17]} 40. Nb5 {[%clk 0:00:56]}  Be1 {[%clk 0:00:16]} 41. Nc7+ {[%clk 0:00:57]} 1-0


[Site "https://www.chess.com"]

[Event "Titled Tuesday Blitz July 25 Early 2023"]
[White "Ozates, Tuna"]
[Black "Moroni, Luca Jr"]
[WhiteFideId "6354521"]
[BlackFideId "865834"]
[WhiteElo "2559"]
[BlackElo "2869"]
[Result "1-0"]
[Round "2"]
[TimeControl "180+2"]
[Date "2023.07.25"]
[WhiteClock "0:00:04"]
[BlackClock "0:00:03"]
[Board "42"]

1. e4 {[%clk 0:03:00]}  g6 {[%clk 0:03:00]} 2. d4 {[%clk 0:03:00]}  Bg7 {[%clk 0:03:00]} 3. Nc3 {[%clk 0:03:01]}  d6 {[%clk 0:03:00]} 4. f4 {[%clk 0:03:00]}  d5 {[%clk 0:02:59]} 5. e5 {[%clk 0:02:57]}  Nh6 {[%clk 0:02:58]} 6. Nf3 {[%clk 0:02:50]}  Bg4 {[%clk 0:02:57]} 7. Be3 {[%clk 0:02:50]}  Nf5 {[%clk 0:02:57]} 8. Bf2 {[%clk 0:02:50]}  h5 {[%clk 0:02:56]} 9. h3 {[%clk 0:02:48]}  Bxf3 {[%clk 0:02:56]} 10. Qxf3 {[%clk 0:02:49]}  e6 {[%clk 0:02:57]} 11. g4 {[%clk 0:02:46]}  Ne7 {[%clk 0:02:47]} 12. Bd3 {[%clk 0:02:43]}  Qd7 {[%clk 0:02:42]} 13. Rg1 {[%clk 0:02:36]}  Nbc6 {[%clk 0:02:39]} 14. f5 {[%clk 0:02:33]}  hxg4 {[%clk 0:02:38]} 15. hxg4 {[%clk 0:02:32]}  gxf5 {[%clk 0:02:08]} 16. gxf5 {[%clk 0:02:32]}  Bxe5 {[%clk 0:02:08]} 17. dxe5 {[%clk 0:02:19]}  Nxe5 {[%clk 0:02:08]} 18. Qg3 {[%clk 0:02:11]}  Nxd3+ {[%clk 0:02:04]} 19. Qxd3 {[%clk 0:02:12]}  Nxf5 {[%clk 0:02:02]} 20. O-O-O {[%clk 0:02:10]}  O-O-O {[%clk 0:01:54]} 21. Nb5 {[%clk 0:01:49]}  a6 {[%clk 0:01:50]} 22. Nd4 {[%clk 0:01:49]}  Nd6 {[%clk 0:01:43]} 23. Nb3 {[%clk 0:01:37]}  Ne4 {[%clk 0:01:35]} 24. Be3 {[%clk 0:01:21]}  Rh3 {[%clk 0:01:25]} 25. Qd4 {[%clk 0:01:17]}  b6 {[%clk 0:01:24]} 26. Bf4 {[%clk 0:01:15]}  Kb7 {[%clk 0:01:15]} 27. a4 {[%clk 0:01:07]}  f6 {[%clk 0:01:08]} 28. a5 {[%clk 0:00:37]}  e5 {[%clk 0:01:02]} 29. Bxe5 {[%clk 0:00:32]}  fxe5 {[%clk 0:01:03]} 30. Qxe5 {[%clk 0:00:33]}  Qd6 {[%clk 0:00:40]} 31. Qd4 {[%clk 0:00:24]}  Rd7 {[%clk 0:00:28]} 32. axb6 {[%clk 0:00:23]}  cxb6 {[%clk 0:00:29]} 33. Rg8 {[%clk 0:00:20]}  Qc6 {[%clk 0:00:22]} 34. Kb1 {[%clk 0:00:19]}  Rh2 {[%clk 0:00:22]} 35. c3 {[%clk 0:00:11]}  Rhh7 {[%clk 0:00:12]} 36. Qb4 {[%clk 0:00:11]}  Qe6 {[%clk 0:00:07]} 37. Qf8 {[%clk 0:00:08]}  Qe7 {[%clk 0:00:03]} 38. Qa8+ {[%clk 0:00:08]}  Kc7 {[%clk 0:00:03]} 39. Qb8+ {[%clk 0:00:08]}  Kc6 {[%clk 0:00:04]} 40. Nd4+ {[%clk 0:00:05]}  Kc5 {[%clk 0:00:04]} 41. Rc8+ {[%clk 0:00:06]}  Rc7 {[%clk 0:00:04]} 42. Rxc7+ {[%clk 0:00:04]}  Qxc7 {[%clk 0:00:05]} 43. Qf8+ {[%clk 0:00:04]}  Qd6 {[%clk 0:00:05]} 44. Qc8+ {[%clk 0:00:03]}  Rc7 {[%clk 0:00:03]} 45. Qxa6 {[%clk 0:00:04]}  b5 {[%clk 0:00:03]} 46. Qxb5# {[%clk 0:00:04]} 1-0


[Site "https://www.chess.com"]

[Event "Titled Tuesday Blitz July 25 Early 2023"]
[White "Bernadskiy, Vitaliy"]
[Black "Bagrationi, Alexander"]
[WhiteFideId "14100371"]
[BlackFideId "14104954"]
[WhiteElo "2862"]
[BlackElo "2558"]
[Result "1-0"]
[Round "2"]
[TimeControl "180+2"]
[Date "2023.07.25"]
[WhiteClock "0:00:06"]
[BlackClock "0:00:07"]
[Board "44"]

1. Nf3 {[%clk 0:03:00]}  d5 {[%clk 0:02:52]} 2. e3 {[%clk 0:02:59]}  Nf6 {[%clk 0:02:50]} 3. c4 {[%clk 0:02:58]}  e6 {[%clk 0:02:49]} 4. Nc3 {[%clk 0:02:58]}  c6 {[%clk 0:02:49]} 5. b3 {[%clk 0:02:58]}  Bd6 {[%clk 0:02:47]} 6. Bb2 {[%clk 0:02:59]}  O-O {[%clk 0:02:48]} 7. Be2 {[%clk 0:02:57]}  Nbd7 {[%clk 0:02:48]} 8. Qc2 {[%clk 0:02:53]}  b6 {[%clk 0:02:47]} 9. d4 {[%clk 0:02:49]}  Bb7 {[%clk 0:02:46]} 10. O-O {[%clk 0:02:50]}  Rc8 {[%clk 0:02:46]} 11. Rad1 {[%clk 0:02:50]}  c5 {[%clk 0:02:46]} 12. cxd5 {[%clk 0:02:48]}  Nxd5 {[%clk 0:02:45]} 13. Nxd5 {[%clk 0:02:43]}  Bxd5 {[%clk 0:02:44]} 14. e4 {[%clk 0:02:39]}  Bb7 {[%clk 0:02:43]} 15. Qd3 {[%clk 0:02:24]}  Be7 {[%clk 0:02:37]} 16. d5 {[%clk 0:02:13]}  exd5 {[%clk 0:02:35]} 17. exd5 {[%clk 0:02:14]}  Bf6 {[%clk 0:02:32]} 18. Bxf6 {[%clk 0:02:01]}  Qxf6 {[%clk 0:02:32]} 19. Qb5 {[%clk 0:01:55]}  Rfd8 {[%clk 0:02:17]} 20. Qa4 {[%clk 0:01:51]}  a5 {[%clk 0:02:11]} 21. Rfe1 {[%clk 0:01:43]}  Nf8 {[%clk 0:02:11]} 22. Bc4 {[%clk 0:01:36]}  Rd6 {[%clk 0:02:01]} 23. Re8 {[%clk 0:01:22]}  Rcd8 {[%clk 0:02:01]} 24. h3 {[%clk 0:01:04]}  Bxd5 {[%clk 0:01:52]} 25. Bxd5 {[%clk 0:00:36]}  Rxd5 {[%clk 0:01:50]} 26. Rxd5 {[%clk 0:00:36]}  Rxd5 {[%clk 0:01:50]} 27. Qe4 {[%clk 0:00:28]}  Rd8 {[%clk 0:01:38]} 28. Re5 {[%clk 0:00:27]}  g6 {[%clk 0:01:35]} 29. g3 {[%clk 0:00:25]}  Kg7 {[%clk 0:01:32]} 30. Kg2 {[%clk 0:00:25]}  Rd6 {[%clk 0:01:32]} 31. a4 {[%clk 0:00:23]}  Ne6 {[%clk 0:01:28]} 32. Rd5 {[%clk 0:00:19]}  Rxd5 {[%clk 0:01:18]} 33. Qxd5 {[%clk 0:00:20]}  Qc3 {[%clk 0:01:15]} 34. Ne5 {[%clk 0:00:18]}  Kf6 {[%clk 0:01:04]} 35. Nd7+ {[%clk 0:00:17]}  Ke7 {[%clk 0:01:04]} 36. Nxb6 {[%clk 0:00:17]}  Qd4 {[%clk 0:00:58]} 37. Qb7+ {[%clk 0:00:14]}  Kf6 {[%clk 0:00:58]} 38. Nc4 {[%clk 0:00:13]}  h5 {[%clk 0:00:54]} 39. Qf3+ {[%clk 0:00:12]}  Kg7 {[%clk 0:00:54]} 40. Nxa5 {[%clk 0:00:12]}  h4 {[%clk 0:00:52]} 41. Nc6 {[%clk 0:00:09]}  Qd2 {[%clk 0:00:46]} 42. Ne5 {[%clk 0:00:08]}  Ng5 {[%clk 0:00:37]} 43. Qf4 {[%clk 0:00:08]}  Qd5+ {[%clk 0:00:36]} 44. Kh2 {[%clk 0:00:07]}  hxg3+ {[%clk 0:00:35]} 45. Kxg3 {[%clk 0:00:05]}  Qxb3+ {[%clk 0:00:31]} 46. Kh2 {[%clk 0:00:05]}  Qxh3+ {[%clk 0:00:29]} 47. Kg1 {[%clk 0:00:04]}  f6 {[%clk 0:00:25]} 48. a5 {[%clk 0:00:05]}  Qa3 {[%clk 0:00:21]} 49. Nc4 {[%clk 0:00:04]}  Qa1+ {[%clk 0:00:18]} 50. Kg2 {[%clk 0:00:04]}  Ne6 {[%clk 0:00:18]} 51. Qd6 {[%clk 0:00:04]}  Qe1 {[%clk 0:00:14]} 52. Qe7+ {[%clk 0:00:03]}  Kh6 {[%clk 0:00:15]} 53. Ne3 {[%clk 0:00:03]}  Nf4+ {[%clk 0:00:14]} 54. Kf3 {[%clk 0:00:04]}  Nh5 {[%clk 0:00:12]} 55. Ng4+ {[%clk 0:00:04]}  Kg5 {[%clk 0:00:13]} 56. Qxe1 {[%clk 0:00:04]}  f5 {[%clk 0:00:08]} 57. Qc1+ {[%clk 0:00:05]}  Kh4 {[%clk 0:00:08]} 58. Qh1+ {[%clk 0:00:06]}  Kg5 {[%clk 0:00:07]} 59. Ne3 {[%clk 0:00:06]} 1-0


[Site "https://www.chess.com"]